bitfinex-derivatives/quotes_SOLF0:USTF0_20250530
["timestamp","ask_amount","ask_price","bid_price","bid_amount"]
[1748629282066,4.3185,159.96,159.88,44.90752422]
[1748629282266,6.29767053,159.94,159.9,0.04262563]
[1748629282466,6.29767053,159.94,159.9,6.29512563]
[1748629282865,0.04637053,159.94,159.9,0.04262563]
[1748629285070,6.2524,159.91,159.9,0.04262563]
[1748629285268,0.04637053,159.94,159.9,0.04262563]
[1748629286365,6.2524,159.91,159.9,0.04262563]
[1748629286771,0.04637053,159.94,159.9,0.04262563]
[1748629287065,0.04637053,159.94,159.66,44.7262851]
[1748629287066,10.92527563,159.91,159.7,10.92527563]
[1748629287272,6.2552,159.84,159.8,6.2566]
[1748629287573,33.98,159.88,159.76,10.92258716]
[1748629287870,6.2553,159.84,159.8,6.2566]
[1748629288065,0.04737217,159.84,159.8,0.0396935]
[1748629288274,0.04737217,159.84,159.83,6.2555]
[1748629289169,0.04737217,159.84,159.82,6.2557]
[1748629289671,6.30247217,159.84,159.82,6.2557]
[1748629289872,0.04737217,159.84,159.81,33.98]
[1748629290374,0.04737217,159.84,159.81,40.2363]
[1748629291769,0.04737217,159.84,159.83,6.2555]
[1748629292167,0.04737217,159.84,159.81,33.98]
[1748629292368,0.04737217,159.84,159.81,40.2361]
[1748629292571,0.04737217,159.84,159.8,0.0396935]
[1748629292973,6.2556,159.83,159.8,6.2962935]
[1748629293373,6.2556,159.83,159.8,0.0396935]
[1748629293680,0.04737217,159.84,159.8,0.0396935]
[1748629295868,6.2556,159.83,159.8,0.0396935]
[1748629296076,0.04737217,159.84,159.8,0.0396935]
[1748629296475,6.2561,159.82,159.8,0.0396935]
[1748629297873,0.04737217,159.84,159.8,0.0396935]
[1748629298474,0.04737217,159.84,159.81,6.2559]
[1748629298782,0.04737217,159.84,159.8,0.0396935]
[1748629298980,6.30267217,159.84,159.8,0.0396935]
[1748629299480,6.30267217,159.84,159.81,6.2562]
[1748629299781,6.2555,159.83,159.8,0.0396935]
[1748629300082,0.04737217,159.84,159.8,6.2961935]
[1748629300588,0.04737217,159.84,159.81,6.2563]
[1748629301084,0.04737217,159.84,159.8,0.0396935]
[1748629302783,0.04737217,159.84,159.83,6.2555]
[1748629305484,4.099,159.91,159.88,6.2535]
[1748629305682,33.68,159.93,159.85,10.91793247]
[1748629305977,2.0241,159.94,159.89,6.2529]
[1748629305978,6.2522,159.92,159.89,6.2529]
[1748629306179,2.0241,159.94,159.86,33.68]
[1748629306576,0.04469823,159.92,159.9,6.2524]
[1748629306782,0.04469823,159.92,159.88,0.04269842]
[1748629308680,0.04469823,159.92,159.91,6.2523]
[1748629309193,0.04469823,159.92,159.88,0.04269842]
[1748629309381,0.04469823,159.92,159.9,6.2527]
[1748629309877,6.29679823,159.92,159.89,6.253]
[1748629310580,6.2527,159.9,159.88,0.04269842]
[1748629310981,0.04469823,159.92,159.88,0.04269842]
[1748629311184,6.2526,159.91,159.88,6.29619842]
[1748629311385,0.04469823,159.92,159.88,0.04269842]
[1748629312186,6.29689823,159.92,159.89,6.253]
[1748629312689,0.04469823,159.92,159.88,0.04269842]
[1748629312884,0.04469823,159.92,159.9,6.2524]
[1748629313281,0.04469823,159.92,159.88,0.04269842]
[1748629313995,0.04469823,159.92,159.91,6.2523]
[1748629314283,0.04469823,159.92,159.9,39.9326]
[1748629314885,0.04469823,159.92,159.91,6.2523]
[1748629316485,2.119,160.04,159.9,33.68]
[1748629316686,6.2491,160.0,159.92,10.91793247]
[1748629316891,33.66,160.03,159.92,10.91793247]
[1748629317088,2.119,160.04,159.92,10.91793247]
[1748629317291,2.119,160.04,159.95,10.91793247]
[1748629317491,0.04029101,160.01,159.98,0.04775089]
[1748629317786,33.66,160.07,159.98,10.96568336]
[1748629317992,33.66,160.1,159.98,10.96568336]
[1748629318193,6.2459,160.08,159.96,33.66]
[1748629318394,6.2459,160.08,160.02,10.91793247]
[1748629318592,33.66,160.13,160.04,6.2469]
[1748629318790,33.66,160.13,160.07,0.04692636]
[1748629319304,6.2457,160.08,160.07,0.04692636]
[1748629320192,6.2471,160.05,160.0,33.66]
[1748629320393,33.66,160.09,160.0,33.66]
[1748629320394,4.1259,160.07,160.01,6.2482]
[1748629320786,6.2471,160.05,160.01,6.2482]
[1748629320990,4.1259,160.07,160.01,6.2482]
[1748629321198,0.04306689,160.06,160.02,6.2960523]
[1748629321396,0.04306689,160.06,160.02,0.0480523]
[1748629322588,6.2471,160.05,160.02,0.0480523]
[1748629323001,6.28986689,160.06,160.03,6.2476]
[1748629323595,0.04306689,160.06,160.02,0.0480523]
[1748629324295,6.2475,160.04,160.02,0.0480523]
[1748629324497,0.04306689,160.06,160.02,0.0480523]
[1748629324699,6.2472,160.05,160.02,6.2960523]
[1748629325697,6.2475,160.04,160.02,0.0480523]
[1748629325896,0.04306689,160.06,160.02,0.0480523]
[1748629326102,0.04306689,160.06,160.04,6.2471]
[1748629326299,0.04306689,160.06,160.02,0.0480523]
[1748629326797,0.04306689,160.06,160.05,6.2469]
[1748629327298,0.04306689,160.06,160.02,0.0480523]
[1748629327299,6.2447,160.11,160.07,6.2458]
[1748629327504,4.1166,160.13,160.04,51.56182591]
[1748629327893,6.2444,160.12,160.04,51.56182591]
[1748629328198,4.1166,160.13,160.04,51.56182591]
[1748629328399,2.0752,160.13,160.07,0.04431618]
[1748629328895,2.0752,160.13,160.08,33.42]
[1748629329103,2.0752,160.13,160.1,6.2447]
[1748629329599,2.0752,160.13,160.08,39.6657]
[1748629329804,2.0752,160.13,160.07,0.04431618]
[1748629330102,6.2442,160.12,160.09,6.2453]
[1748629330502,2.0752,160.13,160.09,6.2453]
[1748629330708,1.9994,160.19,160.11,6.2442]
[1748629330903,2.1012,160.18,160.13,0.04191278]
[1748629331803,6.2434,160.14,160.13,0.04191278]
[1748629332402,6.2448,160.11,160.09,33.42]
[1748629332603,2.1012,160.18,160.09,33.42]
[1748629332804,2.1012,160.18,160.06,33.4]
[1748629333203,2.1012,160.18,160.09,6.2452]
[1748629333507,6.2437,160.14,160.12,0.04590153]
[1748629333806,0.04486829,160.15,160.12,0.04590153]
[1748629334002,6.2436,160.14,160.12,0.04590153]
[1748629334198,0.04486829,160.15,160.12,0.04590153]
[1748629334907,0.04486829,160.15,160.12,6.28990153]
[1748629335107,6.2436,160.14,160.12,0.04590153]
[1748629335504,6.2438,160.13,160.12,0.04590153]
[1748629335704,0.04486829,160.15,160.12,0.04590153]
[1748629336200,6.2437,160.14,160.12,0.04590153]
[1748629336601,0.04486829,160.15,160.12,0.04590153]
[1748629336802,6.2438,160.14,160.12,0.04590153]
[1748629337004,0.04486829,160.15,160.12,0.04590153]
[1748629338309,2.0118,160.19,160.12,0.04590153]
[1748629338698,6.2418,160.19,160.12,0.04590153]
[1748629339300,33.4,160.23,160.12,0.04590153]
[1748629339506,33.4,160.23,160.16,0.043662]
[1748629339706,6.2411,160.2,160.17,6.242]
[1748629340106,33.4,160.23,160.16,0.043662]
[1748629340313,6.2408,160.21,160.18,6.2416]
[1748629341115,6.2408,160.21,160.16,0.043662]
[1748629341416,6.2404,160.22,160.16,0.043662]
[1748629341613,6.2404,160.22,160.19,6.2414]
[1748629341815,12.60422679,160.26,160.18,33.4]
[1748629342014,12.60422679,160.26,160.2,0.04224666]
[1748629342914,46.00422679,160.26,160.2,0.04224666]
[1748629343414,6.2407,160.21,160.2,0.04224666]
[1748629344616,2.1534,160.25,160.2,0.04224666]
[1748629345118,6.2402,160.23,160.2,0.04224666]
[1748629345416,6.2402,160.23,160.21,6.2407]
[1748629345621,2.1534,160.25,160.2,0.04224666]
[1748629347420,6.2407,160.21,160.2,0.04224666]
[1748629348220,2.1534,160.25,160.16,33.38]
[1748629348419,2.1534,160.25,160.15,6.2429]
[1748629348621,6.242,160.18,160.15,6.2429]
[1748629348920,6.242,160.18,160.16,6.2426]
[1748629349323,6.28374343,160.19,160.16,6.2426]
[1748629349516,0.04214343,160.19,160.16,6.2426]
[1748629350116,0.04214343,160.19,160.17,6.2422]
[1748629350117,6.28374343,160.19,160.17,6.2422]
[1748629350423,0.04214343,160.19,160.15,0.04643041]
[1748629350826,0.04214343,160.19,160.18,6.2418]
[1748629351219,0.04214343,160.19,160.17,39.6219]
[1748629351521,0.04214343,160.19,160.17,33.38]
[1748629351720,0.04214343,160.19,160.17,39.622]
[1748629352224,0.04214343,160.19,160.17,33.38]
[1748629352422,0.04214343,160.19,160.15,0.04643041]
[1748629353227,6.2426,160.16,160.15,0.04643041]
[1748629353728,37.436,160.18,160.06,539.44]
[1748629353729,6.245,160.1,160.06,539.44]
[1748629353929,33.38,160.14,160.05,35.4231]
[1748629354122,33.38,160.14,160.06,6.2463]
[1748629354319,33.38,160.14,160.05,33.38]
[1748629354728,0.04202766,160.11,160.08,0.0412463]
[1748629355416,6.2453,160.09,160.08,0.0412463]
[1748629356726,0.04202766,160.11,160.02,33.38]
[1748629356916,37.7346,160.1,160.02,33.38]
[1748629357318,37.7346,160.1,160.02,6.2478]
[1748629357728,37.7346,160.1,159.99,35.5385]
[1748629357729,0.04579997,160.08,160.04,0.04335046]
[1748629358230,6.2462,160.07,160.04,0.04335046]
[1748629358819,0.04579997,160.08,160.04,0.04335046]
[1748629359532,6.2464,160.07,160.04,0.04335046]
[1748629360026,6.2464,160.07,160.04,6.29055046]
[1748629360230,0.04579997,160.08,160.04,0.04335046]
[1748629360631,6.2462,160.07,160.04,0.04335046]
[1748629360827,0.04579997,160.08,160.04,6.29055046]
[1748629361027,0.04579997,160.08,160.04,0.04335046]
[1748629361931,6.2469,160.05,160.04,0.04335046]
[1748629363637,0.04579997,160.08,160.06,6.2465]
[1748629363838,0.04579997,160.08,160.04,0.04335046]
[1748629364234,0.04579997,160.08,160.07,6.2461]
[1748629364938,0.04579997,160.08,160.04,0.04335046]
[1748629366535,0.04579997,160.08,160.06,6.2463]
[1748629367131,0.04579997,160.08,160.04,0.04335046]
[1748629367329,6.29159997,160.08,160.04,0.04335046]
[1748629367634,0.04579997,160.08,160.04,0.04335046]
[1748629367929,6.2469,160.05,160.04,0.04335046]
[1748629368543,6.2467,160.06,160.04,0.04335046]
[1748629369037,0.04579997,160.08,160.04,0.04335046]
[1748629369432,6.29179997,160.08,160.04,0.04335046]
[1748629369638,0.04579997,160.08,160.04,0.04335046]
[1748629370138,6.2467,160.06,160.04,0.04335046]
[1748629370941,6.2469,160.05,160.04,0.04335046]
[1748629371244,0.04579997,160.08,160.04,0.04335046]
[1748629371544,6.2468,160.06,160.04,0.04335046]
[1748629371744,0.04579997,160.08,160.04,0.04335046]
[1748629371947,6.2469,160.05,160.04,0.04335046]
[1748629372638,6.2482,160.02,160.0,33.46]
[1748629373039,6.2479,160.03,160.0,39.7087]
[1748629373543,0.04002383,160.03,160.01,6.2484]
[1748629373744,0.04002383,160.03,160.0,33.50268469]
[1748629374340,0.04002383,160.03,160.02,6.2481]
[1748629374542,0.04002383,160.03,160.0,33.50268469]
[1748629374946,0.04002383,160.03,160.01,6.2485]
[1748629375834,0.04002383,160.03,160.0,39.75138469]
[1748629376244,0.04002383,160.03,160.0,33.50268469]
[1748629377543,6.2483,160.02,160.0,33.50268469]
[1748629377943,0.04002383,160.03,160.0,0.04268469]
[1748629378152,6.28792383,160.03,160.0,6.29128469]
[1748629378340,0.04002383,160.03,160.0,0.04268469]
[1748629378545,0.04002383,160.03,160.02,6.2481]
[1748629381252,0.04002383,160.03,160.01,6.2482]
[1748629382247,0.04002383,160.03,160.0,10.93090072]
[1748629382959,0.04002383,160.03,160.02,6.2481]
[1748629386751,6.2462,160.07,160.05,6.2467]
[1748629386952,35.4535,160.1,160.05,6.2467]
[1748629387152,35.4535,160.1,160.02,33.34]
[1748629387351,6.246,160.08,160.05,6.2465]
[1748629387650,35.3953,160.14,160.04,10.88821603]
[1748629387857,0.04190913,160.11,160.09,6.2451]
[1748629388155,0.04190913,160.11,160.07,0.04637425]
[1748629388552,0.04190913,160.11,160.1,6.2449]
[1748629389148,0.04190913,160.11,160.07,0.04637425]
[1748629389645,0.04190913,160.11,160.1,6.2449]
[1748629392852,0.04190913,160.11,160.08,6.2454]
[1748629393255,0.04190913,160.11,160.07,0.04637425]
[1748629394553,0.04190913,160.11,160.1,6.2449]
[1748629394956,0.04190913,160.11,160.07,0.04637425]
[1748629395958,0.04190913,160.11,160.1,6.2449]
[1748629397059,2.145,160.19,160.13,6.2436]
[1748629397448,6.2424,160.17,160.1,33.32]
[1748629397956,0.04221907,160.15,160.12,0.0399744]
[1748629398348,0.04221907,160.15,160.14,6.2434]
[1748629398757,0.04221907,160.15,160.14,39.5634]
[1748629400061,0.04221907,160.15,160.14,33.32]
[1748629400555,0.04221907,160.15,160.14,39.5634]
[1748629400762,0.04221907,160.15,160.14,33.32]
[1748629401260,0.04221907,160.15,160.12,0.0399744]
[1748629401959,6.2413,160.2,160.13,33.32]
[1748629402160,6.2413,160.2,160.17,6.2418]
[1748629402458,6.2413,160.2,160.13,35.3486]
[1748629402459,4.1526,160.23,160.13,35.3486]
[1748629402762,6.2406,160.22,160.13,35.3486]
[1748629402975,0.04663602,160.19,160.16,0.04581827]
[1748629403157,0.04663602,160.19,160.17,33.32]
[1748629403358,12.60422679,160.26,160.17,33.32]
[1748629403557,6.2395,160.25,160.17,33.32]
[1748629403861,12.60422679,160.26,160.17,33.32]
[1748629404360,12.60422679,160.26,160.2,0.04144189]
[1748629405361,6.2407,160.21,160.2,0.04144189]
[1748629406358,12.60422679,160.26,160.2,0.04144189]
[1748629406968,6.2407,160.21,160.2,0.04144189]
[1748629407461,0.04456807,160.22,160.15,33.3]
[1748629407768,0.04456807,160.22,160.12,51.42173886]
[1748629407968,45.90422679,160.26,160.13,33.3]
[1748629408356,0.04483354,160.21,160.18,0.04579182]
[1748629408562,6.28573354,160.21,160.18,6.28719182]
[1748629408861,0.04483354,160.21,160.18,0.04579182]
[1748629409067,6.2414,160.19,160.18,0.04579182]
[1748629409865,6.28563354,160.21,160.18,0.04579182]
[1748629410060,0.04483354,160.21,160.18,0.04579182]
[1748629410471,6.2414,160.19,160.18,0.04579182]
[1748629410766,0.04483354,160.21,160.18,0.04579182]
[1748629410961,6.28563354,160.21,160.18,6.28739182]
[1748629411172,0.04483354,160.21,160.18,0.04579182]
[1748629411565,6.2413,160.2,160.18,0.04579182]
[1748629411764,0.04483354,160.21,160.18,0.04579182]
[1748629412267,6.2414,160.19,160.18,0.04579182]
[1748629412468,0.04483354,160.21,160.18,0.04579182]
[1748629413466,0.04483354,160.21,160.2,6.241]
[1748629414165,12.60422679,160.26,160.23,6.2397]
[1748629414670,18.84322679,160.26,160.23,6.2397]
[1748629414966,12.60422679,160.26,160.24,6.2394]
[1748629415170,12.60422679,160.26,160.23,0.04193232]
[1748629415370,12.60422679,160.26,160.24,10.86469398]
[1748629415568,12.60422679,160.26,160.25,6.2391]
[1748629416770,33.3,160.35,160.24,10.86469398]
[1748629416968,50.26119398,160.38,160.28,0.04767456]
[1748629417168,39.3965,160.38,160.31,0.04247564]
[1748629417369,39.3965,160.38,160.33,0.04010053]
[1748629417566,39.3965,160.38,160.34,0.0476577]
[1748629417768,6.237,160.31,160.26,44.16469398]
[1748629417966,39.3965,160.38,160.27,0.04339777]
[1748629418167,39.3965,160.38,160.31,0.04729746]
[1748629418363,6.2364,160.32,160.31,0.04729746]
[1748629423171,33.28,160.37,160.31,0.04729746]
[1748629423780,6.2364,160.32,160.31,0.04729746]
[1748629424076,33.28,160.37,160.31,0.04729746]
[1748629424370,6.2358,160.34,160.31,0.04729746]
[1748629424575,33.28,160.37,160.31,0.04729746]
[1748629424779,6.2363,160.33,160.31,0.04729746]
[1748629424972,33.28,160.37,160.31,0.04729746]
[1748629426781,6.2364,160.32,160.31,0.04729746]
[1748629428480,33.28,160.37,160.31,0.04729746]
[1748629428983,6.2359,160.34,160.31,0.04729746]
[1748629429483,6.2359,160.34,160.31,6.28399746]
[1748629429682,6.236,160.33,160.31,0.04729746]
[1748629429875,33.28,160.37,160.31,0.04729746]
[1748629430073,6.2356,160.35,160.31,6.28389746]
[1748629430378,33.28,160.37,160.31,0.04729746]
[1748629431379,6.2355,160.35,160.32,6.2361]
[1748629431986,33.28,160.37,160.31,0.04729746]
[1748629432577,33.28,160.37,160.32,6.236]
[1748629432578,6.235,160.36,160.32,6.236]
[1748629432881,6.0965,160.38,160.32,6.236]
[1748629433177,6.2352,160.35,160.32,6.236]
[1748629433382,6.0965,160.38,160.31,0.04729746]
[1748629433577,6.2364,160.32,160.31,0.04729746]
[1748629433782,16.96119398,160.38,160.31,0.04729746]
[1748629433981,6.236,160.33,160.31,0.04729746]
[1748629435176,6.2364,160.32,160.31,0.04729746]
[1748629436085,33.28,160.36,160.26,6.2385]
[1748629436086,6.2377,160.29,160.26,6.2385]
[1748629436585,6.2378,160.29,160.26,6.2385]
[1748629436782,10.86469398,160.35,160.17,4.0633]
[1748629437088,0.0393955,160.28,160.27,6.2383]
[1748629437276,0.04251909,160.29,160.26,0.04275132]
[1748629437481,0.04502301,160.29,160.26,0.04399455]
[1748629437681,6.2379,160.28,160.26,0.04399455]
[1748629438087,0.04502301,160.29,160.26,0.04399455]
[1748629439587,6.2382,160.28,160.26,0.04399455]
[1748629439790,0.04502301,160.29,160.26,0.04399455]
[1748629440293,0.04502301,160.29,160.27,6.2383]
[1748629440686,0.04502301,160.29,160.26,6.28249455]
[1748629440882,6.28252301,160.29,160.26,6.28249455]
[1748629441081,0.04502301,160.29,160.26,0.04399455]
[1748629441790,0.04502301,160.29,160.28,6.2379]
[1748629444794,0.04502301,160.29,160.26,33.32399455]
[1748629445386,0.04502301,160.29,160.27,6.2383]
[1748629445592,0.04502301,160.29,160.26,33.32399455]
[1748629445898,0.04502301,160.29,160.26,0.04399455]
[1748629446395,6.2381,160.28,160.26,0.04399455]
[1748629446791,0.04502301,160.29,160.26,0.04399455]
[1748629446999,0.04502301,160.29,160.26,6.28259455]
[1748629447000,6.28272301,160.29,160.26,6.28259455]
[1748629447593,6.2379,160.28,160.26,0.04399455]
[1748629447994,0.04502301,160.29,160.26,0.04399455]
[1748629448997,6.28262301,160.29,160.26,6.28239455]
[1748629449499,6.2379,160.28,160.26,6.28239455]
[1748629449899,0.04502301,160.29,160.26,6.28239455]
[1748629450098,0.04502301,160.29,160.27,6.2383]
[1748629450299,0.04502301,160.29,160.26,0.04399455]
[1748629450700,6.28262301,160.29,160.26,6.28259455]
[1748629451300,0.04502301,160.29,160.26,0.04399455]
[1748629451892,0.04502301,160.29,160.27,6.2381]
[1748629452099,0.04502301,160.29,160.26,0.04399455]
[1748629452600,0.04502301,160.29,160.28,6.2379]
[1748629453800,0.04502301,160.29,160.28,39.5179]
[1748629454803,2.1259,160.35,160.33,6.2358]
[1748629454992,6.2351,160.36,160.33,6.2358]
[1748629455900,6.2351,160.36,160.33,6.28301351]
[1748629456705,6.2352,160.35,160.33,0.04721351]
[1748629457001,2.08,160.37,160.33,0.04721351]
[1748629457204,6.235,160.36,160.33,6.28301351]
[1748629457606,2.08,160.37,160.33,0.04721351]
[1748629458103,6.2352,160.36,160.33,0.04721351]
[1748629458300,2.08,160.37,160.33,0.04721351]
[1748629458506,8.3146,160.37,160.34,6.2353]
[1748629459104,6.2337,160.39,160.36,6.2346]
[1748629459306,33.26,160.41,160.33,10.91190749]
[1748629459800,33.26,160.41,160.33,0.04721351]
[1748629460195,6.2339,160.39,160.35,6.235]
[1748629460399,6.2339,160.39,160.35,6.27582591]
[1748629460799,6.2339,160.39,160.36,6.2348]
[1748629461103,6.2339,160.39,160.35,0.04082591]
[1748629461301,6.2331,160.41,160.35,0.04082591]
[1748629461999,6.2333,160.4,160.37,6.2342]
[1748629462202,6.2333,160.4,160.37,6.28148323]
[1748629462794,37.3178,160.44,160.37,0.04728323]
[1748629462795,6.2336,160.39,160.37,0.04728323]
[1748629463898,6.2334,160.4,160.37,0.04728323]
[1748629464200,37.3178,160.44,160.37,0.04728323]
[1748629464703,37.3178,160.44,160.37,6.28158323]
[1748629465103,6.2333,160.4,160.37,6.28158323]
[1748629465305,37.3178,160.44,160.37,6.28158323]
[1748629465502,6.2338,160.39,160.37,0.04728323]
[1748629467105,6.234,160.38,160.37,0.04728323]
[1748629467808,6.2356,160.34,160.33,33.26]
[1748629468003,33.26,160.4,160.3,33.26]
[1748629468702,33.26,160.4,160.32,6.2362]
[1748629468903,0.04061609,160.37,160.33,0.04324677]
[1748629469411,6.2356,160.34,160.33,0.04324677]
[1748629471209,6.2366,160.32,160.3,33.26]
[1748629472410,0.04338884,160.33,160.3,33.26]
[1748629472804,6.27958884,160.33,160.3,39.4968]
[1748629473204,0.04338884,160.33,160.3,33.26]
[1748629473808,0.04338884,160.33,160.31,6.2365]
[1748629474312,6.27968884,160.33,160.3,39.4969]
[1748629474501,0.04338884,160.33,160.3,39.4969]
[1748629474706,0.04338884,160.33,160.3,33.26]
[1748629475507,0.04338884,160.33,160.29,0.04698408]
[1748629476214,6.2366,160.32,160.29,6.28428408]
[1748629477305,6.237,160.31,160.29,0.04698408]
[1748629477709,0.04338884,160.33,160.29,0.04698408]
[1748629478512,6.237,160.31,160.29,0.04698408]
[1748629479212,0.04338884,160.33,160.29,0.04698408]
[1748629479609,6.2369,160.31,160.29,0.04698408]
[1748629479810,0.04338884,160.33,160.29,0.04698408]
[1748629480202,6.2371,160.3,160.29,0.04698408]
[1748629480513,0.04338884,160.33,160.29,0.04698408]
[1748629480816,6.2371,160.3,160.29,0.04698408]
[1748629481004,0.04338884,160.33,160.29,0.04698408]
[1748629481511,6.2367,160.32,160.29,6.28438408]
[1748629481704,6.2367,160.32,160.29,0.04698408]
[1748629481901,6.27958884,160.33,160.29,0.04698408]
[1748629482303,0.04338884,160.33,160.29,0.04698408]
[1748629482804,6.27948884,160.33,160.29,6.28418408]
[1748629483004,6.27948884,160.33,160.29,0.04698408]
[1748629483209,6.27948884,160.33,160.3,6.2369]
[1748629483417,0.04338884,160.33,160.3,6.2369]
[1748629483916,6.27948884,160.33,160.3,6.2369]
[1748629484115,0.04338884,160.33,160.3,6.2369]
[1748629484419,6.27948884,160.33,160.3,6.2369]
[1748629485317,6.2365,160.32,160.29,6.28438408]
[1748629485519,0.04338884,160.33,160.29,0.04698408]
[1748629485919,6.2365,160.32,160.29,0.04698408]
[1748629486217,0.04338884,160.33,160.29,0.04698408]
[1748629486518,6.27968884,160.33,160.3,6.2371]
[1748629486916,0.04338884,160.33,160.29,0.04698408]
[1748629487119,6.2364,160.32,160.29,6.28428408]
[1748629488011,6.27968884,160.33,160.3,6.2371]
[1748629488319,0.04338884,160.33,160.29,0.04698408]
[1748629488514,6.27938884,160.33,160.3,6.2369]
[1748629488707,0.04338884,160.33,160.29,0.04698408]
[1748629489506,0.04338884,160.33,160.31,6.2365]
[1748629490117,0.04338884,160.33,160.32,6.2364]
[1748629490718,0.04338884,160.33,160.31,6.2366]
[1748629492219,0.04338884,160.33,160.32,6.2364]
[1748629493414,0.04338884,160.33,160.29,0.04698408]
[1748629493415,6.27938884,160.33,160.31,6.2366]
[1748629493615,0.04338884,160.33,160.31,6.2366]
[1748629494016,0.04338884,160.33,160.32,6.2364]
[1748629496723,0.04338884,160.33,160.31,6.2366]
[1748629497127,0.04338884,160.33,160.29,0.04698408]
[1748629499231,6.27948884,160.33,160.29,0.04698408]
[1748629499434,0.04338884,160.33,160.29,0.04698408]
[1748629499929,0.04338884,160.33,160.31,6.2367]
[1748629500138,0.04338884,160.33,160.29,0.04698408]
[1748629500531,0.04338884,160.33,160.32,6.2364]
[1748629500733,6.27958884,160.33,160.29,0.04698408]
[1748629500935,6.27958884,160.33,160.3,6.2369]
[1748629501331,6.27958884,160.33,160.29,0.04698408]
[1748629501637,0.04338884,160.33,160.29,0.04698408]
[1748629501833,0.04338884,160.33,160.3,10.86469398]
[1748629502135,0.04338884,160.33,160.29,0.04698408]
[1748629502529,0.04338884,160.33,160.3,10.86469398]
[1748629503133,0.04338884,160.33,160.29,0.04698408]
[1748629503331,0.04338884,160.33,160.29,10.91167806]
[1748629503529,6.27948884,160.33,160.3,6.2368]
[1748629503738,0.04338884,160.33,160.3,6.2368]
[1748629504227,6.27948884,160.33,160.3,6.2368]
[1748629504732,0.04338884,160.33,160.31,6.2365]
[1748629504934,0.04338884,160.33,160.29,0.04698408]
[1748629505634,0.04338884,160.33,160.3,6.2371]
[1748629506034,0.04338884,160.33,160.29,0.04698408]
[1748629506331,0.04338884,160.33,160.32,6.2364]
[1748629506841,0.04338884,160.33,160.31,6.2366]
[1748629507038,0.04338884,160.33,160.3,10.86469398]
[1748629507434,0.04338884,160.33,160.32,6.2364]
[1748629507834,1.9664,160.38,160.29,0.04698408]
[1748629508033,8.2005,160.38,160.35,6.235]
[1748629508329,1.9664,160.38,160.32,33.26]
[1748629508940,0.04000958,160.37,160.33,0.04254274]
[1748629510138,6.27440958,160.37,160.34,6.2355]
[1748629510433,0.04000958,160.37,160.33,0.04254274]
[1748629512037,0.04000958,160.37,160.36,6.2348]
[1748629512239,18.6807,160.57,160.36,33.26]
[1748629512443,4.1426,160.45,160.36,44.12469398]
[1748629512638,2.1617,160.44,160.36,44.12469398]
[1748629512839,2.1617,160.44,160.3,12.4744]
[1748629512840,2.1617,160.44,160.33,33.26]
[1748629513043,2.1617,160.44,160.34,10.86469398]
[1748629513237,6.2333,160.4,160.37,6.27411846]
[1748629513441,6.2333,160.4,160.37,0.03981846]
[1748629513744,39.493,160.41,160.37,0.03981846]
[1748629513939,2.1617,160.44,160.37,0.03981846]
[1748629514137,33.26,160.42,160.37,0.03981846]
[1748629514344,39.4925,160.42,160.39,6.2334]
[1748629514841,6.2325,160.42,160.38,6.2339]
[1748629515436,6.2325,160.42,160.39,6.2335]
[1748629516942,6.2329,160.41,160.38,6.2339]
[1748629517139,35.4017,160.44,160.37,0.03981846]
[1748629518046,6.2325,160.42,160.39,6.2336]
[1748629518240,35.4017,160.44,160.37,0.03981846]
[1748629518441,2.1617,160.44,160.37,0.03981846]
[1748629518748,35.4017,160.44,160.37,0.03981846]
[1748629519151,6.2324,160.43,160.37,0.03981846]
[1748629519943,8.3935,160.44,160.41,6.2328]
[1748629520148,8.3935,160.44,160.41,6.27356417]
[1748629520349,8.3935,160.44,160.41,6.27346417]
[1748629521049,6.2321,160.43,160.41,0.04076417]
[1748629521453,2.1617,160.44,160.41,0.04076417]
[1748629522147,8.3934,160.44,160.41,6.27336417]
[1748629523049,2.1617,160.44,160.41,0.04076417]
[1748629523455,8.3935,160.44,160.41,6.27346417]
[1748629524358,8.3935,160.44,160.42,6.2325]
[1748629524561,2.1617,160.44,160.42,6.2325]
[1748629524856,33.24,160.46,160.42,6.2325]
[1748629525053,6.2314,160.45,160.42,6.2325]